Cogmind - Beta 17 @@@ ROGUE MODE // 2026.08.25 @ 05:15:27 Player: KTG-V3 Result: Destroyed by G-73 Enforcer with Phase Gun Performance ------------- Evolutions (8) 4000 Regions Visited (24) 4800 Robots Destroyed (466) 2330 Value Destroyed (23560) 23560 Prototype IDs (131) 2620 Alien Tech Used (5) 1000 Bonus (10971) 10971 TOTAL SCORE: 49281 Bonus ------- High Alert Combat Kills 3953 Follower Combat Kills 2908 Network Hubs Disabled 200 Registered with UFD 300 Met Optimus in HQ 500 Met Zhirov 300 Built Enhanced Grunts 300 Met R17 at Cetus 500 Met R17 at Research 2000 Scanned by Researcher 500 Friendly Fire -490 Cogmind --------- Core Integrity 0/1450 Matter 214/300 Energy 14/100 System Corruption 39% Temperature Cool (9) Movement Core (50) Location -2/Protoforge Parts ------- > --- POWER (3) -------- (None) > --- PROPULSION (6) --- (None) > --- UTILITY (10) ----- Advanced Signal Interpreter Experimental Terrain Scanner Experimental EM Shield > --- WEAPON (4) ------- (None) > --- INVENTORY (5) ---- Advanced Sensor Array Crosscalibrator Subatomic Replicator Potential Cannon Peak State ------------ > --- POWER ------------ Experimental Antimatter Reactor Experimental Antimatter Reactor Hybrid Graviton Reactor > --- PROPULSION ------- High-density Centrium Heavy Treads High-density Centrium Heavy Treads High-density Centrium Heavy Treads > --- UTILITY ---------- Coolant Network Huge Storage Unit Advanced Signal Interpreter Advanced Targeting Computer Concept Networked Targeting System Core Analyzer Advanced Transmission Jammer Experimental Force Field Concept Antimissile System > --- WEAPON ----------- Precision Phase Gun Cooled Phase Cannon Enhanced Nova Cannon Cooled Nova Cannon > --- INVENTORY -------- Coolant Network Experimental Energy Well Advanced Matter Compressor Advanced Sensor Array Experimental Terrain Scanner Concept Weapon Articulator Particle Accelerator Centrium Medium Armor Plating Centrium Medium Armor Plating Experimental EM Shield Crosscalibrator Transdimensional Reconstructor Transdimensional Reconstructor Subatomic Replicator Precision Phase Gun Heavy Quantum Rifle Long-range Proton Cannon Compact HERF Cannon Enhanced Nova Cannon Enhanced Nova Cannon Potential Cannon Graviton Cannon Concept Tiamat Rocket Array [Rating: 224] Favorites ----------- Power Particle Reactor Engine Improved Deuterium Engine Power Core Neutrino Core Reactor Particle Reactor Propulsion Light Treads Treads Light Treads Wheel Overtuned Huge Scrapsphere Utility Huge Storage Unit Device Advanced Heat Sink Storage Huge Storage Unit Processor Advanced Targeting Computer Hackware Hacking Suite Protection Hardened Medium Armor Plating Weapon Overtuned Coil Gun Energy Gun Gatling Laser Energy Cannon Cooled Nova Cannon Ballistic Gun Overtuned Coil Gun Ballistic Cannon Hardcell Cannon Launcher Heavy Proton Missile Launcher Special Weapon Improved Remote Datajack Impact Weapon Powered Hammer Build | -11 -10 -10 -9 -9 -8 -7 -7 -7 -7 -5 -5 -5 -5 -4 -4 -4 -4 -4 -4 -3 -3 -2 -2 -2 ------- Run | Yrd Mat Min Mat Min Mat Fac Sto Rec Scr Fac Upp Upp Zhi Pro Fac Ext Cet Arc Hub Res Tes Res Qua Frg Slots Evolved 16 | . . . 2 . 2 2 . . . 4 . . . . 2 . . . . 2 . 2 . . Power 2 | . . . . . . . . . . 1 . . . . 1 . . . . . . . . . Propulsion 4 | . . . . . . 1 . . . . . . . . . . . . . 1 . 2 . . Utility 8 | . . . 2 . 2 . . . . 2 . . . . 1 . . . . 1 . . . . Weapon 2 | . . . . . . 1 . . . 1 . . . . . . . . . . . . . . Parts Attached 318 | 6 7 . 16 2 20 37 3 3 7 28 5 2 2 6 18 28 11 11 1 30 27 17 14 17 Power 49 | 1 1 . 3 . 2 4 1 2 . 1 2 . . . 2 8 3 1 . 8 2 3 1 4 Engine 13 | 1 1 . 3 . 2 3 1 2 . . . . . . . . . . . . . . . . Core 8 | . . . . . . 1 . . . 1 1 . . . 1 3 . . . 1 . . . . Reactor 28 | . . . . . . . . . . . 1 . . . 1 5 3 1 . 7 2 3 1 4 Propulsion 41 | 2 . . 2 . 6 7 . . 1 5 1 . . 1 . 3 . 1 . 1 1 6 4 . Treads 36 | 2 . . 2 . 6 6 . . 1 2 1 . . 1 . 2 . 1 . 1 1 6 4 . Leg . | . . . . . . . . . . . . . . . . . . . . . . . . . Wheel 5 | . . . . . . 1 . . . 3 . . . . . 1 . . . . . . . . Hover . | . . . . . . . . . . . . . . . . . . . . . . . . . Flight . | . . . . . . . . . . . . . . . . . . . . . . . . . Utility 130 | 1 6 . 5 2 6 13 1 1 5 11 . . 2 3 10 9 4 5 1 14 10 6 6 9 Device 92 | . 3 . 3 1 3 6 1 1 2 9 . . 1 3 9 9 3 4 . 11 9 4 4 6 Storage 9 | 1 3 . . . . . . . . 1 . . 1 . . . . . . 1 1 1 . . Processor 6 | . . . . . 1 1 . . 1 . . . . . 1 . . . . . . . 1 1 Hackware 4 | . . . . . . 1 . . 1 . . . . . . . . 1 . . . 1 . . Protection 19 | . . . 2 1 2 5 . . 1 1 . . . . . . 1 . 1 2 . . 1 2 Artifact . | . . . . . . . . . . . . . . . . . . . . . . . . . Weapon 98 | 2 . . 6 . 6 13 1 . 1 11 2 2 . 2 6 8 4 4 . 7 14 2 3 4 Energy Gun 37 | 2 . . 3 . 2 7 . . . 5 . . . 1 1 5 2 . . 1 5 . . 3 Energy Cannon 18 | . . . 1 . 1 1 . . . 1 1 2 . . 2 . . . . . 5 2 1 1 Ballistic Gun 28 | . . . . . 1 3 . . 1 4 . . . 1 2 2 2 4 . 6 2 . . . Ballistic Cannon 6 | . . . . . 2 1 1 . . . . . . . 1 . . . . . . . 1 . Launcher 5 | . . . 2 . . . . . . . 1 . . . . . . . . . 2 . . . Special Weapon 2 | . . . . . . . . . . 1 . . . . . 1 . . . . . . . . Impact Weapon 2 | . . . . . . 1 . . . . . . . . . . . . . . . . 1 . Slashing Weapon . | . . . . . . . . . . . . . . . . . . . . . . . . . Piercing Weapon . | . . . . . . . . . . . . . . . . . . . . . . . . . Special Melee Weapon . | . . . . . . . . . . . . . . . . . . . . . . . . . Unidentified Prototypes 56 | . . . . . 2 4 2 . . 4 . . 2 . . . 2 . . 7 20 1 10 2 Corrupted Parts 5 | . . . . . . . . . 1 . . . . 1 . 1 . . . . . . . 2 System Corruption 36 | . . . . . . . . . 5 . . . . 2 . 12 . . . . . . . 17 Parts Lost 58 | . 1 . 1 1 4 3 . . 1 4 1 1 . 1 5 1 . . 3 3 . 3 1 24 Power 9 | . 1 . . . . 1 . . . . 1 . . . 1 . . . 1 1 . 1 . 2 Propulsion 7 | . . . . . 1 1 . . . 1 . . . . . 1 . . . . . . . 3 Utility 29 | . . . 1 1 2 1 . . . 3 . 1 . 1 3 . . . 1 1 . 2 1 11 Weapon 13 | . . . . . 1 . . . 1 . . . . . 1 . . . 1 1 . . . 8 Highest Loss Streak 14 | . 1 . 1 1 3 1 . . 1 1 1 1 . 1 2 1 . . 3 2 . 1 1 14 To Critical Strikes . | . . . . . . . . . . . . . . . . . . . . . . . . . Average Backups 22 | 2 9 13 22 24 24 24 24 25 24 23 22 22 23 22 22 23 22 21 22 22 22 21 22 22 Power 1 | . 1 1 1 1 1 . 1 1 1 . 1 1 1 1 . 1 1 1 1 . 1 1 1 . Propulsion 2 | 1 . 1 3 6 4 3 5 4 4 2 . . . . 1 . 1 2 2 1 1 . . . Utility 10 | . 2 4 8 7 8 11 11 11 11 12 13 12 12 11 11 12 12 12 12 11 12 11 9 9 Weapon 7 | . 4 7 9 9 8 8 7 7 7 7 6 7 7 6 7 7 5 5 6 8 6 7 8 8 Tool/Special . | . . . . . . . . . . . . . . . . . . . . . . . . . Unused Backups 78 | . 5 . 6 1 8 13 3 2 3 5 1 2 1 . 1 5 5 1 . 3 5 2 . 6 Power 14 | . 3 . . . 3 . 1 . . 1 1 . . . . 1 1 . . 2 1 . . . Propulsion 9 | . 2 . . . . 2 1 1 3 . . . . . . . . . . . . . . . Utility 21 | . . . . . 1 3 1 1 . 1 . . 1 . 1 1 3 1 . 1 3 2 . 1 Weapon 30 | . . . 6 1 4 7 . . . 3 . 2 . . . 3 1 . . . 1 . . 2 Tool/Special 4 | . . . . . . 1 . . . . . . . . . . . . . . . . . 3 Average Slot Usage (%) 89 | . 98 100 99 99 98 97 91 91 91 91 87 88 64 88 88 88 89 88 88 81 79 77 79 75 Engine 4 | . 13 14 11 11 9 6 . 6 7 8 2 . . . 3 1 . . . . . . . . Core 1 | . . . . . . . 7 . . 1 4 5 5 5 5 5 5 3 . . . . . . Reactor 4 | . . . . . . . . . . . 2 5 5 5 6 8 10 11 15 13 13 13 12 8 Treads 10 | . 27 28 22 22 18 18 7 7 7 5 5 5 5 5 4 1 . 1 5 4 4 8 13 11 Wheel 3 | . . . . . . 1 7 7 7 5 5 5 5 5 5 8 10 8 5 4 4 3 . . Device 17 | . 13 14 22 22 26 10 7 7 7 16 17 17 17 22 25 26 21 21 20 20 18 16 17 17 Storage 6 | . 14 14 11 11 9 7 7 7 7 5 5 5 6 5 5 5 5 5 5 4 4 4 4 4 Processor 9 | . . . . . 8 13 15 15 15 11 11 11 11 11 10 10 10 10 10 9 9 8 9 12 Hackware 1 | . . . . . . 4 7 7 7 2 . . . . . . . . . . . . . . Protection 4 | . . . 10 10 9 7 7 7 6 5 5 5 3 . . . 4 3 5 4 3 4 4 3 Energy Gun 9 | . 28 28 17 11 8 13 21 22 14 8 5 5 . 8 3 14 18 2 . . 3 . . 3 Energy Cannon 3 | . . . 4 10 6 . . . . . 10 15 . 11 8 1 . . . . 1 5 8 11 Ballistic Gun 5 | . . . . . . 7 . . . 12 5 1 . 1 6 4 2 18 20 19 12 10 7 . Peak Build Rating 224 | 6 10 8 18 19 32 53 55 55 57 86 92 95 97 98 112 115 130 131 126 151 168 189 210 224 Average Rating 90 | 5 8 8 16 18 28 45 52 53 53 77 87 92 71 95 108 109 119 128 125 146 157 179 185 203 On Entrance 81 | . 6 8 8 18 19 30 51 52 44 57 85 90 94 97 98 109 111 130 126 114 149 161 183 209 Avg Prop Armor Cover (%) 6 | . . . . . . 8 9 9 7 5 6 6 10 5 6 5 . 4 4 6 5 7 . . Naked Turns . | . . . . . . . . . . . . . . . . . . . . . . . . . Heaviest Build 220 | 13 89 89 101 105 114 117 111 112 111 145 157 160 156 159 174 162 177 180 175 184 202 211 210 220 Greatest Support 270 | 40 40 40 43 43 43 60 28 28 28 28 20 20 20 20 20 36 36 36 20 80 85 240 270 270 Greatest Overweight (x) 13 | . 2 2 2 2 2 3 3 3 3 13 7 7 7 7 8 9 4 8 8 9 10 10 . . Average Overweight (x) 4 | . . 2 2 2 2 1 3 3 3 5 6 7 5 7 7 4 4 5 7 8 8 5 . . Largest Inventory Capacity 25 | 8 25 25 25 25 25 25 25 25 25 25 25 25 25 25 25 25 25 25 25 25 25 25 25 25 Average Capacity 24 | 7 15 25 25 25 25 25 25 25 25 25 25 25 25 25 25 25 25 25 25 25 25 25 25 24 Most Carried 25 | 4 13 13 25 25 25 25 25 25 25 25 25 25 25 25 25 25 25 25 25 25 25 25 25 25 Average Carried 23 | 2 9 13 22 24 24 24 24 24 24 24 24 24 24 24 24 24 24 24 24 24 24 23 24 23 Final Capacity 25 | 8 25 25 25 25 25 25 25 25 25 25 25 25 25 25 25 25 25 25 25 25 25 25 25 5 Final Carried 25 | 4 13 13 25 25 25 25 25 25 25 25 25 25 25 25 25 25 25 25 24 25 25 25 25 5 Scrap Suit Usage (%) 6 | . . . . . . . . . . 20 9 . . . 12 28 3 . . 7 . 74 . . Parts Cannibalized 49 | . . . . . . . . . . 4 1 . . . 9 19 4 . . 10 . 2 . . Class Distribution -------------------- 22% | Scavenger-Tank 16% | Scavenger-Gunner 16% | Scavenger-Mutant 9% | Scavenger-Skirmisher 7% | Mutant 6% | Scavenger-Scrapper 6% | Tank 5% | Skirmisher 4% | Commander-Mutant Dominant Class ---------------- Mutant | -10/Materials Mutant | -10/Mines Scavenger-Mutant | -9/Materials Scavenger-Mutant | -9/Mines Scavenger-Mutant | -8/Materials Scavenger-Gunner | -7/Factory Commander-Gunner | -7/Storage Scavenger-Gunner | -7/Recycling Commander-Mutant | -7/Scraptown Scavenger-Tank | -5/Factory Scavenger-Skirmisher | -5/Upper Caves Scavenger-Gunner | -5/Upper Caves Scavenger-Mutant | -5/Zhirov Scavenger-Gunner | -4/Proximity Caves Scavenger-Gunner | -4/Factory Scavenger-Scrapper | -4/Extension Scavenger-Scrapper | -4/Cetus Scavenger-Skirmisher | -4/Archives Scavenger-Scrapper | -4/Hub_04(d) Scavenger-Tank | -3/Research Scavenger-Tank | -3/Testing Scavenger-Tank | -2/Research Scavenger-Tank | -2/Quarantine Tank | -2/Protoforge Resources | -11 -10 -10 -9 -9 -8 -7 -7 -7 -7 -5 -5 -5 -5 -4 -4 -4 -4 -4 -4 -3 -3 -2 -2 -2 ----------- Run | Yrd Mat Min Mat Min Mat Fac Sto Rec Scr Fac Upp Upp Zhi Pro Fac Ext Cet Arc Hub Res Tes Res Qua Frg Matter Collected 14430 | 260 90 . 265 95 368 1534 255 79 161 1902 280 162 48 352 856 1157 198 424 . 1535 1686 929 855 939 Remotely 10 | . 10 . . . . . . . . . . . . . . . . . . . . . . . Salvage Created 25703 | 63 881 . 648 55 1105 2485 364 251 171 2903 661 223 . 543 1592 2520 53 496 . 752 1916 1620 1575 4826 Parts 1104 | 3 56 . 41 8 46 120 13 10 . 105 17 10 . 16 64 64 3 23 . 34 105 73 61 232 Haulers Intercepted 13 | . 2 . . . 2 2 3 . . 2 . . . . . . . . . . 2 . . . Recyclers Shooed 11 | . 3 . 1 . 1 . . . . 4 . . . . . . . . . 1 . 1 . . Parts Field Recycled . | . . . . . . . . . . . . . . . . . . . . . . . . . Retrieved Matter . | . . . . . . . . . . . . . . . . . . . . . . . . . Parts Self-Destructed 35 | . . . . . . . . . . . 13 10 . 12 . . . . . . . . . . Prevented 9 | . . . . . . . . . . . 4 2 . 3 . . . . . . . . . . Parts Restored . | . . . . . . . . . . . . . . . . . . . . . . . . . Kills | -11 -10 -10 -9 -9 -8 -7 -7 -7 -7 -5 -5 -5 -5 -4 -4 -4 -4 -4 -4 -3 -3 -2 -2 -2 ------- Run | Yrd Mat Min Mat Min Mat Fac Sto Rec Scr Fac Upp Upp Zhi Pro Fac Ext Cet Arc Hub Res Tes Res Qua Frg Combat Hostiles Destroyed 339 | . 15 . 13 6 14 44 4 2 3 35 8 4 . 12 21 28 1 1 . 8 22 16 18 64 Guns 178 | . 15 . 10 1 3 34 4 2 3 27 2 . . 7 10 17 1 1 . 8 16 8 3 6 Cannons 97 | . . . 1 . 10 2 . . . 3 3 3 . 2 8 1 . . . . 4 6 13 41 AOE 24 | . . . 2 5 . 5 . . . 5 3 . . 1 . . . . . . . . . 3 Classes Destroyed 29 | 1 8 . 2 . 1 3 . . 2 2 . . . 1 . 4 . . . . . . 1 4 Worker 22 | . 2 . 3 . . 3 1 . . 4 . . . . 1 1 . . . 4 1 1 . 1 Builder 18 | . 1 . . . . 1 . . . 3 . . . . 2 1 . . . . 3 3 2 2 Tunneler 8 | 3 2 . . 1 . 2 . . . . . . . . . . . . . . . . . . Hauler 13 | . 2 . . . 2 2 3 . . 2 . . . . . . . . . . 2 . . . Recycler 23 | . 2 . 1 . 3 1 . 2 . 5 . . . . 2 3 . . . 2 . 1 1 . Mechanic 2 | . . . . . . 1 . . . . . . . . . . . . . . . . . 1 Operator 15 | . 1 . . . 1 2 . . . 1 . . . . . . . 9 . . . 1 . . Drone 8 | . . . . . . . . . . . . . . 2 . . . . . . . . . 6 Watcher 23 | . 2 . 2 . 2 4 . . . 3 . . . . 1 1 . . . . 3 2 1 2 Swarmer 43 | . 3 . 4 6 . . . . . 7 3 1 . 4 4 3 . . . 5 . . 3 . Saboteur 2 | . . . . . . . . . . . . . . . . 1 . . . . . . . 1 Grunt 109 | . 12 . 5 . 7 25 2 . . 12 . . . 3 7 14 . . . 1 3 3 2 13 Brawler 4 | . . . 1 . . 1 . . . . . . . . . . . . . . . . . 2 Duelist 9 | . . . . . . . . . . 2 3 . . 1 . . . . . . . . . 3 Protector 3 | . . . . . . . . . . . . . . . . . . . . . . . . 3 Researcher 1 | . . . . . . . . . . . . . . . . . . . . . . . . 1 Sentry 35 | . . . 3 . 6 6 2 2 . 2 2 . . 1 . 5 . 1 . . . 2 . 3 Demolisher 1 | . . . . . . . . . . . . . . . . 1 . . . . . . . . Specialist 4 | . . . . . . . . . . . . . . . . 1 . . . . . . . 3 Hunter 24 | . . . . . 1 2 . . . 4 . 2 . . 4 2 . . . 2 2 2 3 . Programmer 68 | . . . . . . 9 . . . 7 . 1 . 1 6 . . . . . 16 8 9 11 Heavy 1 | . . . . . . 1 . . . . . . . . . . . . . . . . . . Behemoth 2 | . . . . . . . . . . . . . . . . 1 . . . . . 1 . . Cetus Guard 1 | . . . . . . . . . . . . . . . . . 1 . . . . . . . Hotshot 11 | . . . . . . . . . . . . . . . . . . . . . . . . 11 Decapitator 3 | . . . . . . . . . . . . . . . . . . . . . . . . 3 Immortal 2 | . . . . . . . . . . . . . . . . . . . . . . . . 2 Fortress 1 | . . . . . . . . . . . . . . . . . . . . . . . 1 . V-Series 3 | . . . . . . . . . . . . . . . . . . . . . . . . 3 Protovariant Y 1 | . . . . . . . . . . . . . . . . . . . . . 1 . . . Guru 1 | . . . . . . . . . 1 . . . . . . . . . . . . . . . Scrapper 2 | . . . . . . . . . 2 . . . . . . . . . . . . . . . Scrapoid 1 | . . . . . . . . . . 1 . . . . . . . . . . . . . . Savage 1 | . . . . . . . . . . . . . . . . . . 1 . . . . . . Butcher 1 | . . . . . . . . . . . . . . . . 1 . . . . . . . . Best Kill Streak 10 | 3 6 . 4 3 5 5 4 3 3 10 4 2 . 4 4 5 1 8 . 7 4 5 8 8 Combat Bots Only 7 | . 6 . 4 3 4 4 2 1 3 6 4 2 . 4 4 5 1 1 . 5 4 3 6 7 Max Kills in Single Turn 4 | 1 1 . 2 2 2 2 1 1 2 4 3 1 . 2 2 2 1 1 . 2 2 2 1 2 Gunslinging 1 | . . . . . . . . . 1 . . . . . . . . . . . . . . . Exploded 4 | . . . 2 2 . 2 . . . 4 3 . . 1 . . . . . . . . . 2 Melee . | . . . . . . . . . . . . . . . . . . . . . . . . . Uniques/NPCs Destroyed . | . . . . . . . . . . . . . . . . . . . . . . . . . Combat | -11 -10 -10 -9 -9 -8 -7 -7 -7 -7 -5 -5 -5 -5 -4 -4 -4 -4 -4 -4 -3 -3 -2 -2 -2 -------- Run | Yrd Mat Min Mat Min Mat Fac Sto Rec Scr Fac Upp Upp Zhi Pro Fac Ext Cet Arc Hub Res Tes Res Qua Frg Hostile Shots Fired 2175 | . 63 . 69 25 84 355 36 9 18 171 11 39 . 33 168 118 14 . 112 119 126 91 109 405 Missed 604 | . 17 . 17 9 16 130 14 2 6 53 1 13 . 9 55 31 5 . 39 28 24 21 29 85 Intercepted 6 | . . . . . . . . . . . . . . . . . . . . . . . . 6 Hits 1571 | . 46 . 52 16 68 225 22 7 12 118 10 26 . 24 113 87 9 . 73 91 102 70 80 320 Melee 38 | . . . . . . . . . . 6 5 . . 1 . . . . . . . . . 26 Projectile 1533 | . 46 . 52 16 68 225 22 7 12 112 5 26 . 23 113 87 9 . 73 91 102 70 80 294 AOE 38 | . . . . . . . . . . . . . . . 2 . . . . 1 . . . 35 Critical Strikes 82 | . . . 2 . 1 4 . . 1 4 1 . . 1 2 6 4 . 1 2 4 5 5 39 Part Disruptions 2 | . . . . . . . . . . . . . . . . 1 . . . . 1 . . . Damage Taken 25493 | . 526 . 542 123 1055 2512 229 45 169 1921 243 495 . 436 1233 1112 218 . 1392 1296 1625 1060 1533 7728 Core 2761 | . 136 . 56 23 129 331 25 . . 116 49 18 . 15 165 98 . . 150 60 67 . 74 1249 Absorbed by Shields 8376 | . . . . . . . . . . 541 12 . . 143 1051 826 78 . . 880 862 751 425 2807 Reduced by Siege Mode 625 | . . . . . . . . . . . . . . . . . . . . 52 41 30 45 457 Ignored by Resistances 224 | . . . . . . . . . . . . . . . . . . . . . . . . 224 Regen/Repaired (Parts) 686 | . 158 . . . . 124 . . . 24 10 . . . 86 147 33 . . 91 . 13 . . Core Remaining (%) 73 | 100 . 45 . 80 76 . . . 49 . . . . 80 . . . . 64 . 90 . . . Volleys Fired 1175 | 9 78 . 43 13 63 146 14 5 7 102 18 9 . 17 68 117 8 25 2 35 85 71 54 186 Largest 4 | 2 2 . 2 2 2 3 3 3 3 4 4 4 . 4 4 4 4 4 4 4 4 4 4 4 Hottest 388 | 90 90 . 121 116 123 198 175 175 180 304 231 284 . 278 265 363 350 270 134 140 194 200 216 388 Shots Fired 3350 | 18 153 . 85 21 123 395 39 16 21 379 56 33 . 65 198 374 23 98 10 140 248 185 179 491 Gun 2396 | 18 153 . 74 8 55 366 39 16 21 365 29 9 . 34 129 327 23 98 10 140 204 85 78 115 Cannon 886 | . . . 9 9 68 19 . . . 12 26 24 . 31 63 21 . . . . 44 100 101 359 Launcher 35 | . . . 2 4 . 10 . . . 1 1 . . . . . . . . . . . . 17 Special 33 | . . . . . . . . . . 1 . . . . 6 26 . . . . . . . . Kinetic 1118 | . . . . . 22 157 . . 7 234 14 1 . 5 101 62 . 48 10 140 145 85 78 9 Thermal 2022 | 18 153 . 83 17 101 216 39 16 14 134 29 21 . 30 66 286 23 50 . . 103 93 95 435 Explosive 18 | . . . 2 4 . 10 . . . 1 1 . . . . . . . . . . . . . Electromagnetic 159 | . . . . . . 12 . . . 9 12 11 . 30 25 . . . . . . 7 6 47 Robot Hit Streak 34 | 4 9 . 17 4 19 32 16 9 11 20 34 5 . 20 18 23 5 6 5 15 20 29 26 29 Robot Miss Streak 11 | 2 3 . 4 11 2 5 5 2 3 8 1 4 . 2 6 4 2 4 1 3 4 2 2 6 Penetration Max 2 | . . . . . . . . . . 1 1 . . . 1 2 . 1 . 1 . 1 1 1 Secondary Targets 30 | . . . . . . 2 . . 1 8 . . . . 1 9 1 . . 2 6 . . . Max Gunslinging Chain 1 | . . . . . . 1 . . 1 1 . . . . 1 1 1 . . 1 1 . . . Shots Hit Robots 2086 | 9 107 . 51 5 95 275 30 13 16 241 35 15 . 32 130 243 6 49 4 89 143 112 107 279 Core Hits 973 | 4 46 . 27 8 38 138 25 13 11 147 17 6 . 19 50 89 7 24 1 35 52 38 36 142 Critical Kills 27 | . . . . . . 1 . . . . . 1 . 1 . . . 2 . 2 6 4 3 7 Critical Parts Destroyed 27 | . . . . . . . . . . 2 1 . . . 2 1 . 5 . 5 5 3 3 . Critical Strikes 138 | 1 8 . 5 1 5 6 . . . 12 2 2 . 1 2 37 2 9 1 7 11 9 6 11 Burn 80 | 1 8 . 5 1 5 4 . . . 10 1 1 . . . 36 2 2 . . . . . 4 Meltdown 13 | . . . . . . . . . . . . 1 . 1 . . . . . . 2 2 1 6 Destroy 43 | . . . . . . . . . . 2 1 . . . 2 1 . 7 1 7 9 7 5 1 Corrupt 1 | . . . . . . 1 . . . . . . . . . . . . . . . . . . Smash 1 | . . . . . . 1 . . . . . . . . . . . . . . . . . . Melee Attacks 10 | . . . . . . 6 2 . . . . . . . . . . . . . . . 2 . Kinetic 2 | . . . . . . . . . . . . . . . . . . . . . . . 2 . Impact 8 | . . . . . . 6 2 . . . . . . . . . . . . . . . . . Slashing . | . . . . . . . . . . . . . . . . . . . . . . . . . Piercing . | . . . . . . . . . . . . . . . . . . . . . . . . . Sneak Attacks 2 | . . . . . . 1 1 . . . . . . . . . . . . . . . . . Combat Hostiles . | . . . . . . . . . . . . . . . . . . . . . . . . . Follow-up Attacks . | . . . . . . . . . . . . . . . . . . . . . . . . . Damage Inflicted 62117 | 108 1302 . 899 347 1631 6359 740 246 362 5744 1266 554 . 1376 3847 6565 410 1652 165 2344 5128 4470 4376 12226 Guns 38440 | 108 1302 . 611 45 739 5412 685 246 362 5256 535 81 . 490 2123 5794 410 1652 165 2344 4238 1931 1251 2660 Cannons 19661 | . . . 87 18 890 173 . . . 259 480 473 . 541 1724 489 . . . . 890 2539 3092 8006 Explosions 3850 | . . . 195 284 . 704 . . . 229 251 . . 345 . 282 . . . . . . . 1560 Melee 158 | . . . . . . 70 55 . . . . . . . . . . . . . . . 33 . Ramming 8 | . . . 6 . 2 . . . . . . . . . . . . . . . . . . . Kinetic 17507 | . . . . . 234 1665 . . 62 2886 170 . . 22 1730 1197 . 861 165 2344 2817 1931 1284 139 Thermal 38445 | 108 1302 . 698 137 1395 3721 685 246 300 2470 637 369 . 892 1396 5368 410 791 . . 2311 2229 3005 9975 Explosive 1514 | . . . 195 210 . 704 . . . 154 251 . . . . . . . . . . . . . Electromagnetic 4518 | . . . . . . 199 . . . 234 208 185 . 462 721 . . . . . . 310 87 2112 Impact 125 | . . . . . . 70 55 . . . . . . . . . . . . . . . . . Slashing . | . . . . . . . . . . . . . . . . . . . . . . . . . Piercing . | . . . . . . . . . . . . . . . . . . . . . . . . . Highest Corruption 39 | . . . . . . 5 6 6 5 10 10 10 10 12 14 26 26 26 7 . 16 3 11 39 Average Corruption 10 | . . . . . . 2 3 6 5 6 10 10 10 10 6 23 26 13 2 . 9 2 5 20 Corruption Purged 38 | . . . . . . 5 . . . 4 . . . . . . . 24 . . . 5 . . Corruption Blocked . | . . . . . . . . . . . . . . . . . . . . . . . . . Effects 637 | . . . . . . 40 10 23 . 50 51 22 7 45 25 90 30 28 7 . 58 2 35 114 Message Errors 136 | . . . . . . 12 3 3 . 6 13 4 3 13 8 19 7 5 2 . 14 . 8 16 Matter Fused 151 | . . . . . . 11 5 6 . 12 9 8 4 14 2 18 9 3 1 . 13 . 9 27 Heat Flow Errors 73 | . . . . . . 4 . 5 . 4 7 2 . 1 8 10 . 3 . . 9 1 3 16 Energy Discharges 61 | . . . . . . 4 . 3 . 6 8 2 . 3 3 7 5 6 . . 3 . 2 9 Parts Rejected 6 | . . . . . . . . . . 1 . 1 . . . 3 . . . . . . 1 . Parts Fused 7 | . . . . . . 1 . . . . 1 . . 1 . 1 1 . . . 1 . . 1 Data Loss (minor) 69 | . . . . . . 5 . 3 . 6 8 1 . 3 3 10 3 1 1 . 7 1 4 13 Data Loss (major) 21 | . . . . . . 1 . . . 1 3 1 . 2 . 2 1 . . . 2 . 3 5 Misfires 35 | . . . . . . . 1 1 . 6 . 2 . 6 1 5 1 3 2 . 1 . 3 3 Alerts 22 | . . . . . . 1 1 2 . 5 1 . . 2 . 3 1 2 1 . 2 . 1 . Misdirections 2 | . . . . . . . . . . . . . . . . . . . . . . . . 2 Weapon Failures 54 | . . . . . . 1 . . . 3 1 1 . . . 12 2 5 . . 6 . 1 22 Overload Shots 2 | . . . . . . . . . . . . . . . . . . . . . . . . 2 Effects 1 | . . . . . . . . . . . . . . . . . . . . . . . . 1 Heat Surge 1 | . . . . . . . . . . . . . . . . . . . . . . . . 1 Overflow Damage 781 | . . . 2 4 . . 35 . . . 47 3 . 102 105 9 . . . . 40 86 213 135 Projectiles 670 | . . . 2 . . . . . . . . 3 . 85 105 9 . . . . 40 86 213 127 Explosions 76 | . . . . 4 . . . . . . 47 . . 17 . . . . . . . . . 8 Melee 35 | . . . . . . . 35 . . . . . . . . . . . . . . . . . Knockbacks 2 | . . . . . 1 . . . . . . . . . 1 . . . . . . . . . Impact . | . . . . . . . . . . . . . . . . . . . . . . . . . Kinetic 2 | . . . . . 1 . . . . . . . . . 1 . . . . . . . . . Secondary . | . . . . . . . . . . . . . . . . . . . . . . . . . Self-Inflicted Damage 250 | . . . . . . . . . . 37 . . . 126 . 71 . . . . . . . 16 Shots 7 | . . . . . . . . . . 1 . . . 2 . 1 . . . . . . . 3 Rammed 2 | . . . 1 . 1 . . . . . . . . . . . . . . . . . . . Targets Rammed 2 | . . . 1 . 1 . . . . . . . . . . . . . . . . . . . Kicked . | . . . . . . . . . . . . . . . . . . . . . . . . . Crushed . | . . . . . . . . . . . . . . . . . . . . . . . . . Highest Temperature 391 | 270 186 . 66 132 199 371 150 254 94 368 266 140 . 65 124 340 187 341 . 42 391 165 207 171 Average Temperature 83 | 136 72 . 23 67 86 82 63 72 40 74 83 60 . 32 42 134 93 117 . 26 107 42 52 76 Received Heat Transfer 3994 | . 276 . 162 . 342 687 81 6 61 303 . . . 64 138 232 . . 150 269 32 131 39 1021 Effects 7 | . . . . . . 4 . . . 1 . . . . . . . 1 . . . . 1 . Shutdowns 1 | . . . . . . 1 . . . . . . . . . . . . . . . . . . Energy Bleed 2 | . . . . . . 1 . . . . . . . . . . . 1 . . . . . . Interference 2 | . . . . . . 1 . . . . . . . . . . . . . . . . 1 . Short Circuit 1 | . . . . . . . . . . 1 . . . . . . . . . . . . . . Damage (minor) 1 | . . . . . . 1 . . . . . . . . . . . . . . . . . . Siege Activations 31 | . . . . . . . . . . . . . . . . . . . . 4 8 4 6 9 Total Turns 545 | . . . . . . . . . . . . . . . . . . . . 66 133 49 109 188 Longest Duration 48 | . . . . . . . . . . . . . . . . . . . . 28 32 23 40 48 Martial Activations . | . . . . . . . . . . . . . . . . . . . . . . . . . Shielding Activations . | . . . . . . . . . . . . . . . . . . . . . . . . . Robots Disrupted . | . . . . . . . . . . . . . . . . . . . . . . . . . Combat Hostiles . | . . . . . . . . . . . . . . . . . . . . . . . . . Robots Corrupted 10 | . . . . . . . 1 . . . . . . . 3 . . . . . . . . 6 Combat Hostiles 9 | . . . . . . . . . . . . . . . 3 . . . . . . . . 6 Parts Fried 33 | . . . . . . . 1 . . 3 . 2 . 1 7 . . . . . . 4 . 15 Impact Corruptions 1 | . . . . . . . 1 . . . . . . . . . . . . . . . . . Robots Melted 29 | . . . . . 1 3 . . . . . 1 . 2 . 10 . . . . 2 2 1 7 Combat Hostiles 28 | . . . . . 1 3 . . . . . 1 . 2 . 10 . . . . 2 2 1 6 Parts Melted 151 | 3 8 . 5 1 8 16 4 . . 8 1 3 . 3 . 41 . 5 . . 10 7 7 21 Heat Transferred 60209 | 383 4050 . 2123 372 3404 7798 1151 468 312 4486 1250 611 . 1146 1856 12369 900 1650 . . 1998 1887 2590 9405 Parts Sabotaged . | . . . . . . . . . . . . . . . . . . . . . . . . . Parts Stolen . | . . . . . . . . . . . . . . . . . . . . . . . . . Parts Stripped 18 | . . . . . . . . . . . . . . . . . . . . . . . 18 . Power Chain Reactions 5 | . . . . . . . . . . 1 . . . 2 . . . . . . . . . 2 Alert | -11 -10 -10 -9 -9 -8 -7 -7 -7 -7 -5 -5 -5 -5 -4 -4 -4 -4 -4 -4 -3 -3 -2 -2 -2 ------- Run | Yrd Mat Min Mat Min Mat Fac Sto Rec Scr Fac Upp Upp Zhi Pro Fac Ext Cet Arc Hub Res Tes Res Qua Frg Maximum Alert Level 4 | . . . . . . 2 2 . . 4 . . . . 2 4 3 2 . . 1 2 2 4 Low Security (%) 54 | 100 100 100 100 100 100 52 . 100 . 34 . . . . 32 . . . 100 100 85 20 3 . Level 1 20 | . . . . . . 40 18 . . 17 . . . . 42 26 . 30 . . 14 66 38 31 Level 2 14 | . . . . . . 7 81 . . 30 . . . . 25 17 . 69 . . . 12 58 21 Level 3 7 | . . . . . . . . . . 17 . . . . . 36 100 . . . . . . 23 Level 4 3 | . . . . . . . . . . . . . . . . 19 . . . . . . . 24 Level 5 . | . . . . . . . . . . . . . . . . . . . . . . . . . High Security . | . . . . . . . . . . . . . . . . . . . . . . . . . Max Security . | . . . . . . . . . . . . . . . . . . . . . . . . . Peak Influence 1547 | 5 145 1 154 102 143 549 513 186 . 1102 . . . . 520 1547 981 560 199 128 338 541 529 1379 Initial 859 | . . 1 . 14 5 3 247 186 . . . . . . 150 231 859 358 113 36 . 186 297 290 Average 270 | . 39 . 48 27 49 176 428 76 . 427 . . . . 284 748 908 448 85 10 85 283 417 761 Influence Increases 14741 | 15 447 . 419 197 471 1448 506 89 . 1789 232 151 . 240 1036 2089 370 344 301 239 863 823 776 1896 Destroy 0b10 Robot/C 7720 | . 300 . 260 120 280 880 220 40 . 1000 200 100 . 200 420 1000 160 80 40 160 440 340 360 1120 Destroy 0b10 Robot/NC 750 | 15 60 . 30 5 40 80 30 10 . 110 10 . . 10 30 50 10 45 5 30 45 40 20 75 Destroy Leader 1402 | . 78 . 64 20 98 272 58 . . 184 10 20 . 30 72 114 . . 12 20 80 94 42 134 Allied During Kill 1405 | . . . . . . . 154 12 . 212 12 1 . . . 662 170 125 48 . . 9 . . Successful Hack 336 | . 9 . 11 . 5 21 12 12 . 34 . . . . 31 35 6 . . . 52 54 12 42 Select Force Hacks 50 | . . . . . . . . . . . . . . . . . . . 50 . . . . . Disable Machine 1005 | . . . 15 15 30 45 30 15 . 75 . . . . 75 45 . 60 120 15 120 105 120 120 Anti-Garrison Action 300 | . . . . . . . . . . . . . . . 150 . . . . . . . . 150 Destroy Structure 1143 | . . . 9 37 3 45 2 . . 114 . . . . 48 138 24 34 26 14 126 181 117 225 Advance Influence 150 | . . . . . . . . . . . . . . . 150 . . . . . . . . . Partial Spotted 15 | . . . . . . . . . . . . . . . . . . . . . . . . 15 Lose Combat Pursuer 465 | . . . 30 . 15 105 . . . 60 . 30 . . 60 45 . . . . . . 105 15 Influence Decreases 13411 | 15 441 6 381 221 477 911 572 568 . 705 922 416 129 240 564 1026 1010 915 555 309 531 626 788 1083 Entered New Map 3545 | . . 5 . 24 9 5 298 293 . . 402 76 129 . . 241 676 537 211 34 . 146 232 227 Time Decay 8266 | 15 431 1 381 187 438 576 214 275 . 505 490 310 . 230 514 565 254 318 214 245 531 410 546 616 Lost Part 550 | . 10 . . 10 30 30 . . . 40 10 10 . 10 50 10 . . 30 30 . 30 10 240 Lost Ally 600 | . . . . . . . 60 . . 160 20 20 . . . 60 80 60 100 . . 40 . . Purge Threat 450 | . . . . . . 300 . . . . . . . . . 150 . . . . . . . . Squads Dispatched 94 | . 4 . 2 . 1 17 4 . . 17 . . . . 10 9 . . 4 4 6 3 4 9 Investigation 20 | . 1 . 1 . 1 1 1 . . 4 . . . . 2 4 . . 2 1 1 1 . . Extermination 27 | . . . . . . 7 . . . 3 . . . . 3 . . . 1 . 5 2 3 3 Reinforcement 30 | . 3 . 1 . . 9 2 . . 5 . . . . 2 3 . . 1 3 . . . 1 Assault 11 | . . . . . . . . . . 1 . . . . 2 2 . . . . . . 1 5 Garrison 6 | . . . . . . . 1 . . 4 . . . . 1 . . . . . . . . . Intercept . | . . . . . . . . . . . . . . . . . . . . . . . . . Searches Triggered . | . . . . . . . . . . . . . . . . . . . . . . . . . Construction Impeded 6 | . . . . . . 2 . . . 2 . . . . 1 1 . . . . . . . . Haulers Reinforced 6 | . . . . . . 2 1 . . 2 . . . . . . . . . 1 . . . . Active Scanning Responses . | . . . . . . . . . . . . . . . . . . . . . . . . . Cargo Convoy Interrupts . | . . . . . . . . . . . . . . . . . . . . . . . . . Stealth | -11 -10 -10 -9 -9 -8 -7 -7 -7 -7 -5 -5 -5 -5 -4 -4 -4 -4 -4 -4 -3 -3 -2 -2 -2 --------- Run | Yrd Mat Min Mat Min Mat Fac Sto Rec Scr Fac Upp Upp Zhi Pro Fac Ext Cet Arc Hub Res Tes Res Qua Frg Distress Signals 25 | . 2 . 2 . 1 3 . . . 3 . . . . . 3 2 . 1 8 . . . . Communications Jammed 60 | . . . . . . . . . . . . . . . . . . . . . 2 1 . 57 Distress Signals 59 | . . . . . . . . . . . . . . . . . . . . . 1 1 . 57 Times Spotted 528 | . 22 . 20 5 21 57 13 2 7 47 9 4 . 11 28 57 10 19 18 24 33 21 27 73 Peak Tracking Total 15 | . 7 . 4 3 4 5 4 . 5 7 4 3 . 4 5 6 5 1 15 6 4 3 4 6 Tactical Retreats 25 | . . . 2 . 1 5 . . . 3 . 1 . . 3 2 . . . . . . 7 1 Traps | -11 -10 -10 -9 -9 -8 -7 -7 -7 -7 -5 -5 -5 -5 -4 -4 -4 -4 -4 -4 -3 -3 -2 -2 -2 ------- Run | Yrd Mat Min Mat Min Mat Fac Sto Rec Scr Fac Upp Upp Zhi Pro Fac Ext Cet Arc Hub Res Tes Res Qua Frg Traps Triggered 32 | . . . . . . 1 4 . . 3 . . . . 10 3 . . 1 4 2 . 2 2 Indirectly 1 | . . . . . . . . . . . . . . . . . . . . . . . . 1 Trap Hack Attempts . | . . . . . . . . . . . . . . . . . . . . . . . . . Triggered . | . . . . . . . . . . . . . . . . . . . . . . . . . Disarmed . | . . . . . . . . . . . . . . . . . . . . . . . . . Reprogrammed . | . . . . . . . . . . . . . . . . . . . . . . . . . Reused . | . . . . . . . . . . . . . . . . . . . . . . . . . Traps Extracted . | . . . . . . . . . . . . . . . . . . . . . . . . . Installed . | . . . . . . . . . . . . . . . . . . . . . . . . . Triggered . | . . . . . . . . . . . . . . . . . . . . . . . . . Machines | -11 -10 -10 -9 -9 -8 -7 -7 -7 -7 -5 -5 -5 -5 -4 -4 -4 -4 -4 -4 -3 -3 -2 -2 -2 ---------- Run | Yrd Mat Min Mat Min Mat Fac Sto Rec Scr Fac Upp Upp Zhi Pro Fac Ext Cet Arc Hub Res Tes Res Qua Frg Machines Disabled 76 | . . . 1 1 2 3 2 1 . 5 1 . . . 6 4 . 4 8 1 9 8 8 12 Max in Single Turn 2 | . . . 1 1 1 1 1 1 . 1 . . . . 1 1 . 2 1 1 1 1 1 1 Garrison Access 6 | . . . . . . 1 1 . . . . . . . 2 . . . . . . . 1 1 Network Hub 1 | . . . . . . . . . . . . . . . . . . . 1 . . . . . Energy Cycler 2 | . . . . . . . . . . . . . . . . 2 . . . . . . . . Machines Repaired . | . . . . . . . . . . . . . . . . . . . . . . . . . Machines Dismantled . | . . . . . . . . . . . . . . . . . . . . . . . . . Machines Sabotaged 1 | . . . . . . . . . . . . . . . . . . . 1 . . . . . Overloaded Fab Kills . | . . . . . . . . . . . . . . . . . . . . . . . . . Hacking | -11 -10 -10 -9 -9 -8 -7 -7 -7 -7 -5 -5 -5 -5 -4 -4 -4 -4 -4 -4 -3 -3 -2 -2 -2 --------- Run | Yrd Mat Min Mat Min Mat Fac Sto Rec Scr Fac Upp Upp Zhi Pro Fac Ext Cet Arc Hub Res Tes Res Qua Frg Machines Accessed 90 | . 3 . 3 . 3 13 5 2 3 8 . 1 4 . 4 10 2 . 3 1 11 4 6 4 Terminals 59 | . 2 . 3 . 3 8 4 2 . 3 . . . . 3 9 2 . 3 . 8 3 3 3 Fabricators 3 | . . . . . . 1 . . . . . . . . . . . . . 1 . 1 . . Repair Stations 4 | . 1 . . . . 2 . . . . . . . . . . . . . . . . 1 . Recycling Units 5 | . . . . . . . . . . 4 . . . . . 1 . . . . . . . . Scanalyzers 4 | . . . . . . . . . . 1 . . . . . . . . . . 2 . 1 . Garrison Access 7 | . . . . . . 2 1 . . . . . . . 1 . . . . . 1 . 1 1 Total Hacks 239 | . 12 . 9 . 8 28 8 2 25 14 . 1 17 . 7 27 4 . 5 1 32 11 16 12 Successful 108 | . 8 . 2 . 3 12 4 1 25 6 . 1 17 . 3 7 2 . 2 1 5 3 2 4 Failed 131 | . 4 . 7 . 5 16 4 1 . 8 . . . . 4 20 2 . 3 . 27 8 14 8 Catastrophic 42 | . . . 1 . 1 5 1 1 . 3 . . . . 2 7 1 . 1 . 9 2 6 2 Database Lockouts . | . . . . . . . . . . . . . . . . . . . . . . . . . Manual 72 | . 5 . 6 . 3 4 4 2 . 9 . . . . . 11 1 . 5 . 15 1 1 5 Terminals 143 | . 8 . 9 . 8 14 7 2 . 5 . . . . 5 25 4 . 5 . 23 10 7 11 Fabricators 3 | . . . . . . 1 . . . . . . . . . . . . . 1 . 1 . . Repair Stations 14 | . 4 . . . . 8 . . . . . . . . . . . . . . . . 2 . Recycling Units 10 | . . . . . . . . . . 8 . . . . . 2 . . . . . . . . Scanalyzers 10 | . . . . . . . . . . 1 . . . . . . . . . . 5 . 4 . Garrison Access 16 | . . . . . . 5 1 . . . . . . . 2 . . . . . 4 . 3 1 Terminal Hacks 73 | . 3 . 1 . 2 4 2 . 25 1 . 1 17 . 2 5 2 . . . 2 2 1 3 Record 27 | . . . . . . . . . 20 . . . 5 . . . 2 . . . . . . . Part Schematic 5 | . 1 . . . . . . . . . . . 4 . . . . . . . . . . . Robot Analysis 9 | . . . . . . . . . 5 . . . 4 . . . . . . . . . . . Prototype ID Bank 4 | . . . . . . . . . . . . . 4 . . . . . . . . . . . Open Door 6 | . . . . . . . 1 . . . . 1 . . 1 3 . . . . . . . . Branch Access Points 6 | . . . 1 . 1 1 . . . 1 . . . . 1 . . . . . . 1 . . Emergency Access Points 2 | . . . . . . . . . . . . . . . . . . . . . 2 . . . Terminal Index 1 | . . . . . . . . . . . . . . . . . . . . . . . . 1 Unreport Threat 3 | . . . . . . 2 . . . . . . . . . 1 . . . . . . . . Locate Traps 7 | . 2 . . . 1 1 1 . . . . . . . . 1 . . . . . 1 . . Maintenance Status 1 | . . . . . . . . . . . . . . . . . . . . . . . 1 . Zone Layout 1 | . . . . . . . . . . . . . . . . . . . . . . . . 1 Proto ID Catalog 1 | . . . . . . . . . . . . . . . . . . . . . . . . 1 Fabricator Hacks 1 | . . . . . . . . . . . . . . . . . . . . 1 . . . . Network Status 1 | . . . . . . . . . . . . . . . . . . . . 1 . . . . Repair Station Hacks 10 | . 4 . . . . 6 . . . . . . . . . . . . . . . . . . Scan Component 6 | . 2 . . . . 4 . . . . . . . . . . . . . . . . . . Repair 4 | . 2 . . . . 2 . . . . . . . . . . . . . . . . . . Recycling Unit Hacks . | . . . . . . . . . . . . . . . . . . . . . . . . . Scanalyzer 4 | . . . . . . . . . . 1 . . . . . . . . . . 3 . . . Insert Component 1 | . . . . . . . . . . . . . . . . . . . . . 1 . . . Retrieve Study 3 | . . . . . . . . . . 1 . . . . . . . . . . 2 . . . Garrison Access Hacks 4 | . . . . . . 1 1 . . . . . . . 1 . . . . . . . 1 . Seal Access 4 | . . . . . . 1 1 . . . . . . . 1 . . . . . . . 1 . Unauthorized Hacks 16 | . 1 . 1 . 1 1 1 1 . 4 . . . . . 2 . . 2 . . 1 . 1 Terminals 11 | . 1 . 1 . 1 1 1 1 . 1 . . . . . 1 . . 2 . . . . 1 Assimilate 1 | . . . . . . . 1 . . . . . . . . . . . . . . . . . Botnet 9 | . 1 . 1 . 1 1 . 1 . 1 . . . . . 1 . . 1 . . . . 1 Sabotage 1 | . . . . . . . . . . . . . . . . . . . 1 . . . . . Fabricators 1 | . . . . . . . . . . . . . . . . . . . . . . 1 . . Liberate 1 | . . . . . . . . . . . . . . . . . . . . . . 1 . . Repair Stations . | . . . . . . . . . . . . . . . . . . . . . . . . . Recycling Units 4 | . . . . . . . . . . 3 . . . . . 1 . . . . . . . . Fedlink 1 | . . . . . . . . . . 1 . . . . . . . . . . . . . . Scrapoids 3 | . . . . . . . . . . 2 . . . . . 1 . . . . . . . . Scanalyzers . | . . . . . . . . . . . . . . . . . . . . . . . . . Garrison Access . | . . . . . . . . . . . . . . . . . . . . . . . . . Data Cores Recovered 3 | . . . . . . . 1 . . 1 . . . . . . . . . . . 1 . . Used . | . . . . . . . . . . . . . . . . . . . . . . . . . Hacking Detections 73 | . 3 . 3 . 2 13 5 2 . 5 . . . . 3 8 2 . 2 1 11 4 5 4 Full Trace Events 14 | . 1 . 1 . 2 1 1 . . 1 . . . . 1 3 . . 1 . 1 1 . . Feedback Events 1 | . . . . . . . . . . . . . . . . . . . . . . 1 . . Hackware Fried 1 | . . . . . . . . . . . . . . . . . . . . . . 1 . . Feedback Blocked . | . . . . . . . . . . . . . . . . . . . . . . . . . Robot Schematics Acquired . | . . . . . . . . . . . . . . . . . . . . . . . . . Robots Built . | . . . . . . . . . . . . . . . . . . . . . . . . . Authchips . | . . . . . . . . . . . . . . . . . . . . . . . . . Time . | . . . . . . . . . . . . . . . . . . . . . . . . . Total Robot Build Rating . | . . . . . . . . . . . . . . . . . . . . . . . . . Part Schematics Acquired 5 | . 1 . . . . . . . . . . . 4 . . . . . . . . . . . Parts Built . | . . . . . . . . . . . . . . . . . . . . . . . . . Authchips . | . . . . . . . . . . . . . . . . . . . . . . . . . Time . | . . . . . . . . . . . . . . . . . . . . . . . . . Total Part Build Rating . | . . . . . . . . . . . . . . . . . . . . . . . . . Part Studies Acquired 3 | . . . . . . . . . . 1 . . . . . . . . . . 2 . . . Parts Repaired 4 | . 2 . . . . 2 . . . . . . . . . . . . . . . . . . Time 104 | . 52 . . . . 52 . . . . . . . . . . . . . . . . . . Parts Recycled . | . . . . . . . . . . . . . . . . . . . . . . . . . Recycled Matter . | . . . . . . . . . . . . . . . . . . . . . . . . . Retrieved Matter . | . . . . . . . . . . . . . . . . . . . . . . . . . Retrieved Components . | . . . . . . . . . . . . . . . . . . . . . . . . . Parts Scanalyzed . | . . . . . . . . . . . . . . . . . . . . . . . . . Part Schematics Acquired . | . . . . . . . . . . . . . . . . . . . . . . . . . Parts Damaged . | . . . . . . . . . . . . . . . . . . . . . . . . . Bothacking | -11 -10 -10 -9 -9 -8 -7 -7 -7 -7 -5 -5 -5 -5 -4 -4 -4 -4 -4 -4 -3 -3 -2 -2 -2 ------------ Run | Yrd Mat Min Mat Min Mat Fac Sto Rec Scr Fac Upp Upp Zhi Pro Fac Ext Cet Arc Hub Res Tes Res Qua Frg Used RIF Installer . | . . . . . . . . . . . . . . . . . . . . . . . . . Robots Hacked 5 | . . . . . . . . . . 1 . . . . 3 1 . . . . . . . . Non-combat 3 | . . . . . . . . . . . . . . . 3 . . . . . . . . . Combat 2 | . . . . . . . . . . 1 . . . . . 1 . . . . . . . . Robot Hacks Applied 5 | . . . . . . . . . . 1 . . . . 3 1 . . . . . . . . parse_system 3 | . . . . . . . . . . 1 . . . . 1 1 . . . . . . . . find_chute 1 | . . . . . . . . . . . . . . . 1 . . . . . . . . . find_recycling 1 | . . . . . . . . . . . . . . . 1 . . . . . . . . . Relay Couplers Released 1 | . . . . . . . . . . . . . . . . . . . . . . . . 1 Machine Destruction 1 | . . . . . . . . . . . . . . . . . . . . . . . . 1 Fabnet Peak Effective % . | . . . . . . . . . . . . . . . . . . . . . . . . . Robots Rewired 11 | . . . . . . . . . . . 1 . . . . 10 . . . . . . . . Allies Hacked 2 | . . . . . . . . . . . . . . . . . . . . . . 2 . . Hacks Repelled . | . . . . . . . . . . . . . . . . . . . . . . . . . Allies | -11 -10 -10 -9 -9 -8 -7 -7 -7 -7 -5 -5 -5 -5 -4 -4 -4 -4 -4 -4 -3 -3 -2 -2 -2 -------- Run | Yrd Mat Min Mat Min Mat Fac Sto Rec Scr Fac Upp Upp Zhi Pro Fac Ext Cet Arc Hub Res Tes Res Qua Frg Total Allies 48 | . . . . . . . 10 . . 10 1 . . . . 18 6 . . . . 3 . . Largest Group 16 | . . . . . . . 10 4 4 5 1 1 . . . 13 16 12 6 . . 3 . . Highest-Rated Group 1069 | . . . . . . . 173 64 64 238 47 29 . . . 658 1069 731 458 . . 174 . . Highest-Rated Ally 159 | . . . . . . . 29 16 16 50 47 29 . . . 159 153 96 96 . . 58 . . Initial UFD Resources 52 | . . . . . . . . . . 39 43 43 43 47 47 47 44 44 44 48 48 52 52 52 Total Orders 1 | . . . . . . . . . . . . . . . . . . . 1 . . . . . STAY 1 | . . . . . . . . . . . . . . . . . . . 1 . . . . . Ally Attacks 537 | . . . . . . . 81 . 5 121 14 2 . . . 195 54 24 33 . . 8 . . Total Damage 12391 | . . . . . . . 931 . 61 2490 321 39 . . . 4953 1656 819 930 . . 191 . . Kills 84 | . . . . . . . 12 . 2 19 2 1 . . . 28 11 5 3 . . 1 . . Allies Corrupted 2 | . . . . . . . . . . . . . . . . . . . . . . 2 . . Allies Melted 2 | . . . . . . . . . 2 . . . . . . . . . . . . . . . Intel | -11 -10 -10 -9 -9 -8 -7 -7 -7 -7 -5 -5 -5 -5 -4 -4 -4 -4 -4 -4 -3 -3 -2 -2 -2 ------- Run | Yrd Mat Min Mat Min Mat Fac Sto Rec Scr Fac Upp Upp Zhi Pro Fac Ext Cet Arc Hub Res Tes Res Qua Frg Active Infowar (turns) 21318 | . 298 125 1813 766 1181 2187 245 71 506 1061 1202 194 . 2 680 772 541 702 420 1956 1999 971 1575 2051 Sensors 13434 | . . . . . . 1577 245 71 506 1061 1202 194 . . 680 772 541 702 420 1018 1731 789 1194 731 Terrain 434 | . . . . . . . . . . . . . . . . . . . . . 3 . . 431 Seismic 4793 | . 298 125 1813 766 1181 610 . . . . . . . . . . . . . . . . . . Jamming 8333 | . . . . . . . . . . . . . . . . . . . . 1948 1999 762 1575 2049 ECM 4 | . . . . . . . . . . . . . . 2 . . . . . 2 . . . . Robot Analysis Total 9 | . . . . . . . . . 5 . . . 4 . . . . . . . . . . . Derelict Logs Recovered 5 | . . . . 1 . . . . . . 1 2 . 1 . . . . . . . . . . Drone Launches . | . . . . . . . . . . . . . . . . . . . . . . . . . Drone Recoveries . | . . . . . . . . . . . . . . . . . . . . . . . . . Exploration | -11 -10 -10 -9 -9 -8 -7 -7 -7 -7 -5 -5 -5 -5 -4 -4 -4 -4 -4 -4 -3 -3 -2 -2 -2 ------------- Run | Yrd Mat Min Mat Min Mat Fac Sto Rec Scr Fac Upp Upp Zhi Pro Fac Ext Cet Arc Hub Res Tes Res Qua Frg Turns Passed 33090 | 133 1534 125 2196 766 1565 3973 450 775 2800 1980 1286 685 210 1244 1402 1695 541 702 440 1963 1999 993 1575 2058 Spaces Moved 14636 | 54 572 40 586 226 387 1472 232 516 1844 976 841 455 150 349 756 805 265 256 259 828 920 376 762 709 Core 9 | 4 . . . . . . . . . . . . . . . . . . . . . . . 5 Treads 4488 | 50 572 40 586 226 387 876 . . . . . . . 114 . . . . . 7 7 157 762 704 Legs . | . . . . . . . . . . . . . . . . . . . . . . . . . Wheels 10139 | . . . . . . 596 232 516 1844 976 841 455 150 235 756 805 265 256 259 821 913 219 . . Hover . | . . . . . . . . . . . . . . . . . . . . . . . . . Flight . | . . . . . . . . . . . . . . . . . . . . . . . . . Fastest Speed 50 | 50 160 320 320 320 320 145 145 145 145 130 130 140 120 140 140 125 140 140 140 150 140 155 160 50 Average Speed 175 | 151 202 320 320 320 320 203 145 145 145 146 139 140 129 332 146 142 140 144 149 152 158 182 162 159 Slowest Speed 730 | 160 320 320 320 320 320 246 145 145 145 275 140 140 140 730 150 270 140 150 150 320 295 235 166 160 Overloaded Moves . | . . . . . . . . . . . . . . . . . . . . . . . . . Propulsion Burnouts . | . . . . . . . . . . . . . . . . . . . . . . . . . Robots Hopped . | . . . . . . . . . . . . . . . . . . . . . . . . . Potential Cave-ins 7 | . . . . . . . . . . . . . . . . . . . . . . . . 7 Cave-ins Triggered 2 | . . . . . . . . . . . . . . . . . . . . . 1 . . 1 Teleports 2 | . . . . . . . . . . . . . . . . . . . . . . . 1 1 Exploration Rate (%) 50 | 5 81 12 37 47 34 46 36 90 95 25 85 68 60 49 17 73 69 88 30 18 93 16 74 19 Regions Visited 24 Branch Regions 16 Pre-discovered Areas 7 | . . . . . . . . . 1 . 1 2 3 . . . . . . . . . . . Known Exits Taken 20 | . . . 1 1 . 1 1 1 1 1 1 1 1 1 1 1 1 1 1 1 1 1 1 . Unknown Exits Taken 4 | 1 1 1 . . 1 . . . . . . . . . . . . . . . . . . . Scrap Searched 16 | . . . . 1 . . . . 5 . 3 5 . 2 . . . . . . . . . . Spaces Dug 73 | . . . . . . 6 . . . 2 1 . . 1 3 . . . 5 . 15 13 4 23 Terrain Destroyed 593 | . . . 6 44 . 48 . . . 23 13 4 . 25 17 32 . 26 7 9 76 84 43 136 Melee 5 | . . . . . . 5 . . . . . . . . . . . . . . . . . . Projectile 357 | . . . . . . 5 . . . 6 5 4 . 8 16 29 . 26 7 9 76 56 43 67 AOE 228 | . . . 6 44 . 38 . . . 15 8 . . 17 . 3 . . . . . 28 . 69 Terrain Rammed . | . . . . . . . . . . . . . . . . . . . . . . . . . Walls Destroyed . | . . . . . . . . . . . . . . . . . . . . . . . . . Machines Disabled . | . . . . . . . . . . . . . . . . . . . . . . . . . Actions | -11 -10 -10 -9 -9 -8 -7 -7 -7 -7 -5 -5 -5 -5 -4 -4 -4 -4 -4 -4 -3 -3 -2 -2 -2 --------- Run | Yrd Mat Min Mat Min Mat Fac Sto Rec Scr Fac Upp Upp Zhi Pro Fac Ext Cet Arc Hub Res Tes Res Qua Frg Total 19782 | 84 796 39 819 248 597 2168 312 535 1957 1303 906 479 168 389 923 1188 434 547 307 1447 1318 566 1006 1246 Wait 2560 | 12 115 . 125 . 73 396 37 1 81 92 15 . . 2 35 129 118 240 45 478 161 58 108 239 Move 14611 | 53 571 39 585 225 386 1471 231 515 1843 975 840 454 149 348 755 804 264 255 258 827 919 375 761 708 Hop . | . . . . . . . . . . . . . . . . . . . . . . . . . Pick Up 236 | 4 15 . 24 2 20 25 6 1 7 22 2 4 2 1 15 13 11 1 . 14 15 11 10 11 Fast Attach 197 | 6 3 . 1 . 5 13 3 . 2 16 2 1 8 4 8 9 3 12 1 21 38 8 19 14 Attach 87 | . 1 . 2 1 6 7 . . 3 12 . 1 . 2 5 1 1 . 1 7 4 6 10 17 Detach 24 | . . . . . . 2 . 2 . 3 . . . . . . . . . 2 4 3 5 3 Swap 422 | . 5 . 22 5 19 62 8 5 7 37 12 7 . 10 21 53 9 5 . 27 30 20 14 44 Drop 402 | . 8 . 16 2 24 40 9 6 7 36 4 3 9 5 16 38 20 9 . 36 54 14 23 23 Fire 1175 | 9 78 . 43 13 63 146 14 5 7 102 18 9 . 17 68 117 8 25 2 35 85 71 54 186 Melee 10 | . . . . . . 6 2 . . . . . . . . . . . . . . . 2 . Ram . | . . . . . . . . . . . . . . . . . . . . . . . . . Kick . | . . . . . . . . . . . . . . . . . . . . . . . . . Crush 2 | . . . 1 . 1 . . . . . . . . . . . . . . . . . . . Escape Stasis 41 | . . . . . . . . . . 8 . . . . . 24 . . . . 8 . . 1 Rewire 15 | . . . . . . . 2 . . . 13 . . . . . . . . . . . . . Trap . | . . . . . . . . . . . . . . . . . . . . . . . . . Miscellaneous . | . . . . . . . . . . . . . . . . . . . . . . . . . Route ------- -11/Scrapyard -10/Materials (discovered 3 exits: *Mat / [*Min x2]) -10/Mines -9/Materials -9/Mines -8/Materials -7/Factory (discovered 5 exits: *Fac x2 / *Sto / *Low x2) -7/Storage -7/Recycling (discovered 2 exits: *Fac / *Scr) -7/Scraptown (discovered 2 exits: *Fac x2) -5/Factory (discovered 3 exits: *Fac / *Upp x2) -5/Upper Caves -5/Upper Caves -5/Zhirov -4/Proximity Caves -4/Factory (discovered 5 exits: *Res / Upp x2 / *Ext x2) -4/Extension (discovered 2 exits: *Res / *Cet) -4/Cetus (discovered 2 exits: *Res / *Arc) -4/Archives (discovered 3 exits: *Res / *Hub x2) -4/Hub_04(d) -3/Research -3/Testing -2/Research (discovered 2 exits: *Qua x2) -2/Quarantine (discovered 3 exits: *Acc / [*Sec] / *Frg) -2/Protoforge (discovered 1 exit: *Acc) History --------- Turn | Location | Event 3 | -11/Scrapyard | Discovered new exit (range 15) 134 | -11/Scrapyard | Entered Materials 316 | -10/Materials | Build established: Mutant 627 | -10/Materials | Discovered new exit (range 16) 908 | -10/Materials | Core integrity fell below 50% 973 | -10/Materials | Discovered new exit (range 16) 1180 | -10/Materials | Discovered new exit (range 9) 1468 | -10/Materials | Repaired Lgt. Treads 1496 | -10/Materials | Repaired Lgt. Treads 1668 | -10/Materials | Entered Mines 1768 | -10/Mines | Discovered new exit (range 8) 1793 | -10/Mines | Entered Materials 1793 | -9/Materials | Evolved 2 slots: Utility x2 2510 | -9/Materials | Build established: Scavenger-Mutant 2883 | -9/Materials | Discovered new exit (range 16) 3915 | -9/Materials | Identified exit to Mines 3989 | -9/Materials | Entered Mines 4372 | -9/Mines | Identified exit to Materials 4755 | -9/Mines | Entered Materials 4755 | -8/Materials | Evolved 2 slots: Utility x2 5282 | -8/Materials | Lost 3 parts (1n1u1w) 6265 | -8/Materials | Discovered new exit (range 4) 6320 | -8/Materials | Entered Factory 6320 | -7/Factory | Evolved 2 slots: Propulsion x1, Weapon x1 6625 | -7/Factory | Build established: Scavenger-Gunner 6678 | -7/Factory | Discovered new exit (range 15) 6946 | -7/Factory | Identified exit to Factory 7099 | -7/Factory | Repaired Grenade Launcher 8030 | -7/Factory | Identified exit to Storage 8030 | -7/Factory | Identified exit to Lower Caves 8083 | -7/Factory | Repaired Lgt. Treads 8740 | -7/Factory | Discovered exit to Factory (range 10) 10293 | -7/Factory | Entered Storage 10329 | -7/Storage | Assisted by bots powering up and referring to "LRC-V3" 10361 | -7/Storage | Garrison activated, responded to threat 10411 | -7/Storage | Lost 3 allies 10596 | -7/Storage | Core integrity fell below 50% 10725 | -7/Storage | Used back door to open Recycling access 10725 | -7/Storage | Discovered new exit (range 5) 10729 | -7/Storage | Identified exit to Recycling 10743 | -7/Storage | Entered Recycling 10743 | -7/Recycling | Accompanied by 4 allies 11277 | -7/Recycling | Discovered new exit (range 5) 11291 | -7/Recycling | Identified exit to Factory 11472 | -7/Recycling | Scanned before Scraplab entrance 11502 | -7/Recycling | Entered Scraplab 11514 | -7/Recycling | Discovered new exit (range 3) 11515 | -7/Recycling | Identified exit to Scraptown 11518 | -7/Recycling | Entered Scraptown 11518 | -7/Scraptown | Accompanied by 4 allies 11518 | -7/Scraptown | System corruption cleaned by C-Scrubber 11830 | -7/Scraptown | Build established: Scavenger-Mutant 12017 | -7/Scraptown | Discovered exit to Factory (range 3) 12149 | -7/Scraptown | Visited Symbiants 12194 | -7/Scraptown | Visited The Evicted 12303 | -7/Scraptown | Visited Spacefarers 12394 | -7/Scraptown | Visited Fellowship of the Rings 12442 | -7/Scraptown | Visited Shadow of the Wyrm 12475 | -7/Scraptown | Visited Science Testing Area 12713 | -7/Scraptown | Visited UFD Registry 12713 | -7/Scraptown | Registered with UFD as "Kinetitorch" 12801 | -7/Scraptown | Visited DA-N13 Charitable Foundation 12807 | -7/Scraptown | Found DCF Scrap (30 items) 12878 | -7/Scraptown | Visited Scrapoid Research Area 12951 | -7/Scraptown | Visited Curators Association 12986 | -7/Scraptown | Visited Infowarlord's Domain 13057 | -7/Scraptown | Visited Chapter 10 13127 | -7/Scraptown | Build established: Commander-Mutant 13136 | -7/Scraptown | Discovered exit to Factory (range 3) 13252 | -7/Scraptown | Visited Supply Room 13281 | -7/Scraptown | Visited Analyses Database 13314 | -7/Scraptown | Visited Junk Repository 13353 | -7/Scraptown | Visited Botcube Research 13364 | -7/Scraptown | Found Botcube 13661 | -7/Scraptown | Visited Abandonware Association 13721 | -7/Scraptown | Learned abandonware demo "ERRANTS.EXE" 13721 | -7/Scraptown | Learned abandonware demo "TRNCOAT.EXE" 13992 | -7/Scraptown | Found Exp. Terrain Scanner 14151 | -7/Scraptown | Met Optimus 14151 | -7/Scraptown | Accepted into 0bPrime 14240 | -7/Scraptown | Civil war broke out across Scraptown 14318 | -7/Scraptown | Entered Factory 14318 | -5/Factory | Accompanied by 4 allies 14318 | -5/Factory | Evolved 4 slots: Power x1, Utility x2, Weapon x1 14330 | -5/Factory | Lost 7 allies 14581 | -5/Factory | Garrison activated, responded to threat 14601 | -5/Factory | Build established: Scavenger-Tank 14623 | -5/Factory | Loaded intel: 8 recycling unit locations 14631 | -5/Factory | Lost 4 allies 14955 | -5/Factory | Discovered new exit (range 15) 14977 | -5/Factory | Identified exit to Upper Caves 15321 | -5/Factory | Scrapoid reinforcements arrived 15377 | -5/Factory | Found Scrap Suit 15519 | -5/Factory | P-70 Sage assimilated allied 05F03-D 15525 | -5/Factory | P-70 Sage assimilated allied 05F04-D 15565 | -5/Factory | Found Scrap Suit 15844 | -5/Factory | Discovered new exit (range 14) 15863 | -5/Factory | Identified exit to Factory 15954 | -5/Factory | Scrapoids reinforcements arrived? 15967 | -5/Factory | Garrison activated, responded to threat 16021 | -5/Factory | System corruption reached 10% 16118 | -5/Factory | First assault squad dispatched 16214 | -5/Factory | Lost 4 allies 16225 | -5/Factory | Found Scrap Suit 16298 | -5/Factory | Entered Upper Caves 16298 | -5/Upper Caves | Accompanied by 1 ally 16449 | -5/Upper Caves | Build established: Skirmisher 16912 | -5/Upper Caves | Attracted the attention of an 0b10 outpost 17095 | -5/Upper Caves | Learned location of Warlord (-4) 17201 | -5/Upper Caves | Discovered new exit (range 13) 17207 | -5/Upper Caves | Build established: Scavenger-Skirmisher 17419 | -5/Upper Caves | Attracted the attention of an 0b10 checkpoint 17576 | -5/Upper Caves | Identified exit to Upper Caves 17584 | -5/Upper Caves | Entered another Upper Caves area 17584 | -5/Upper Caves | Accompanied by 1 ally 18120 | -5/Upper Caves | Build established: Scavenger-Gunner 18153 | -5/Upper Caves | Learned location of Armory (-3) 18191 | -5/Upper Caves | Discovered new exit (range 8) 18199 | -5/Upper Caves | Identified exit to Zhirov 18269 | -5/Upper Caves | Entered Zhirov 18272 | -5/Zhirov | Discovered new exit (range 3) 18295 | -5/Zhirov | Met Zhirov 18323 | -5/Zhirov | Learned location of Quarantine (-2) 18323 | -5/Zhirov | Learned location of Testing (-3) 18323 | -5/Zhirov | Learned location of Command (-1) 18331 | -5/Zhirov | Zhirov requested help retrieving the SGEMP Prototype 18353 | -5/Zhirov | Found Alien Artifact 18353 | -5/Zhirov | Identified Integrated Dissipator 18353 | -5/Zhirov | Installed Integrated Dissipator, increased core heat dissipation (+20) 18374 | -5/Zhirov | Found Alien Artifact 18478 | -5/Zhirov | Identified exit to Proximity Caves 18479 | -5/Zhirov | Entered Proximity Caves 18482 | -4/Proximity Caves | Spotter reported a threat 18693 | -4/Proximity Caves | Spotted B-86 Titan 18869 | -4/Proximity Caves | Attracted the attention of an 0b10 checkpoint 19723 | -4/Proximity Caves | Entered Factory 19723 | -4/Factory | Evolved 2 slots: Power x1, Utility x1 20124 | -4/Factory | Build established: Scavenger-Skirmisher 20211 | -4/Factory | Discovered new exit (range 10) 20222 | -4/Factory | Identified exit to Extension 20407 | -4/Factory | Identified exit to Upper Caves 20495 | -4/Factory | Discovered new exit (range 13) 20736 | -4/Factory | Garrison activated, responded to threat 20743 | -4/Factory | System corruption reached 10% 20756 | -4/Factory | Build established: Scavenger-Gunner 21125 | -4/Factory | Entered Extension 21182 | -4/Extension | Rescued a captive Derelict 21422 | -4/Extension | Rescued A7 21552 | -4/Extension | Scrapoid reinforcements arrived 21557 | -4/Extension | Attached CPS modules to 04E12-D 21559 | -4/Extension | Attached CPS modules to 04E14-D 21576 | -4/Extension | Found Scrap Suit 21608 | -4/Extension | Found Scrap Suit 21798 | -4/Extension | Spotted B-86 Titan 21836 | -4/Extension | Destroyed B-86 Titan 21872 | -4/Extension | Spotted B-86 Titan 21883 | -4/Extension | Allies destroyed B-86 Titan 21921 | -4/Extension | Build established: Scavenger-Scrapper 22125 | -4/Extension | First assault squad dispatched 22308 | -4/Extension | Found Scrap Suit 22359 | -4/Extension | Energy Cycler disabled 22360 | -4/Extension | Rescued a captive Derelict 22361 | -4/Extension | Rescued a captive Derelict 22362 | -4/Extension | Rescued a captive Derelict 22362 | -4/Extension | Rescued a captive Derelict 22362 | -4/Extension | Rescued a captive Derelict 22364 | -4/Extension | Rescued a captive Derelict 22366 | -4/Extension | Rescued a captive Derelict 22759 | -4/Extension | Discovered new exit (range 10) 22761 | -4/Extension | Discovered new exit (range 6) 22788 | -4/Extension | Identified exit to Cetus 22820 | -4/Extension | Entered Cetus 22820 | -4/Cetus | Accompanied by 12 allies (A7) 22825 | -4/Cetus | Acquired a Cetus Manufacturing Module code from A7 22846 | -4/Cetus | Spotted Cetus Guard 22847 | -4/Cetus | Spotted Cetus Guard 22847 | -4/Cetus | Allies destroyed Cetus Guard 22853 | -4/Cetus | Spotted Cetus Guard 22856 | -4/Cetus | Found Scrap Suit 22858 | -4/Cetus | Allies destroyed Cetus Guard 22859 | -4/Cetus | Allies destroyed Cetus Guard 22862 | -4/Cetus | Spotted Cetus Guard 22863 | -4/Cetus | Allies destroyed Cetus Guard 22902 | -4/Cetus | Botcube activated 22916 | -4/Cetus | Botcube completed mutation into treaded form, armed with 2 guns 23010 | -4/Cetus | Started Cetus Manufacturing Module 23035 | -4/Cetus | Manufactured an Enhanced Grunt 23060 | -4/Cetus | Manufactured an Enhanced Grunt 23085 | -4/Cetus | Manufactured an Enhanced Grunt 23110 | -4/Cetus | Manufactured an Enhanced Grunt 23135 | -4/Cetus | Manufactured an Enhanced Grunt 23174 | -4/Cetus | Discovered new exit (range 16) 23208 | -4/Cetus | Spotted Cetus Guard 23208 | -4/Cetus | Spotted Cetus Guard 23209 | -4/Cetus | Spotted Cetus Guard 23209 | -4/Cetus | Extracted ID and sensor layout for unrecognized location from A7's data core 23209 | -4/Cetus | Spotted Cetus Guard 23213 | -4/Cetus | Allies destroyed Cetus Guard 23216 | -4/Cetus | Allies destroyed Cetus Guard 23217 | -4/Cetus | Destroyed Cetus Guard 23222 | -4/Cetus | Allies destroyed Cetus Guard 23232 | -4/Cetus | Discovered new exit (range 16) 23239 | -4/Cetus | Met Revision 17 23243 | -4/Cetus | Lost 4 allies 23331 | -4/Cetus | Identified exit to Archives 23361 | -4/Cetus | Entered Archives 23361 | -4/Archives | Accompanied by 12 allies 23444 | -4/Archives | Lost 6 allies 23447 | -4/Archives | Discovered new exit (range 16) 23490 | -4/Archives | Discovered new exit (range 13) 23582 | -4/Archives | Identified exit to Hub_04(d) 23831 | -4/Archives | Build established: Scavenger-Skirmisher 23926 | -4/Archives | Discovered new exit (range 16) 24063 | -4/Archives | Entered Hub_04(d) 24063 | -4/Hub_04(d) | Accompanied by 6 allies 24242 | -4/Hub_04(d) | Discovered new exit (range 15) 24259 | -4/Hub_04(d) | Build established: Scavenger-Scrapper 24431 | -4/Hub_04(d) | Network Hub disabled 24452 | -4/Hub_04(d) | Spotted Lightning 24453 | -4/Hub_04(d) | Spotted Lightning 24471 | -4/Hub_04(d) | Spotted Lightning 24495 | -4/Hub_04(d) | Lost 5 allies 24501 | -4/Hub_04(d) | Identified exit to Research 24503 | -4/Hub_04(d) | Entered Research 24503 | -3/Research | Evolved 2 slots: Propulsion x1, Utility x1 24533 | -3/Research | Lost 3 parts (1p1u1w) 24703 | -3/Research | Revision forces began assault on 0b10 24716 | -3/Research | Spotted B-86 Titan 24726 | -3/Research | Met up with Revision 17++ 24812 | -3/Research | Build established: Scavenger-Tank 25203 | -3/Research | Research terminal network offline 25215 | -3/Research | Found Prototype Protection 25215 | -3/Research | Identified Centrium Heavy Armor Plating 25365 | -3/Research | Discovered new exit (range 11) 25380 | -3/Research | Identified exit to Testing 25585 | -3/Research | Found Prototype Device 25585 | -3/Research | Identified Exp. EM Disruption Field 26239 | -3/Research | Spotted Striker 26269 | -3/Research | Spotted Striker 26307 | -3/Research | Lost 3 allies 26466 | -3/Research | Entered Testing 26747 | -3/Testing | Found Prototype Launcher 26748 | -3/Testing | Identified Tactical Quantum Warhead 26910 | -3/Testing | Found Prototype Device 26910 | -3/Testing | Identified Exp. Thermal Defense Suite 27062 | -3/Testing | Found Prototype Device 27062 | -3/Testing | Identified Exp. Shield Generator 27568 | -3/Testing | Found Prototype Energy Cannon 27568 | -3/Testing | Identified Cld. Nova Cannon 27631 | -3/Testing | Spotted PY-81EHKPHS72 27640 | -3/Testing | Destroyed PY-81EHKPHS72 27824 | -3/Testing | Discovered new exit (range 7) 27837 | -3/Testing | System corruption reached 10% 27906 | -3/Testing | Identified exit to Research 27974 | -3/Testing | Identified Transdimensional Reconstructor 28149 | -3/Testing | Found Prototype Energy Cannon 28149 | -3/Testing | Identified Potential Cannon 28252 | -3/Testing | Found Prototype Energy Gun 28252 | -3/Testing | Identified Hyp. EM Gauss Rifle 28321 | -3/Testing | Spotted Superbehemoth 28379 | -3/Testing | Crushed by falling debris 28465 | -3/Testing | Entered Research 28465 | -2/Research | Evolved 2 slots: Propulsion x2 28520 | -2/Research | Adv. Hacking Suite fried by hacking feedback 28637 | -2/Research | Lost 3 allies 28659 | -2/Research | Identified exit to Quarantine 29302 | -2/Research | Spotted B-90 Cyclops 29336 | -2/Research | Destroyed B-90 Cyclops 29458 | -2/Research | Entered Quarantine 29541 | -2/Quarantine | Found Alien Artifact 29908 | -2/Quarantine | Cryocooling Duct disabled 29923 | -2/Quarantine | Ambient heat levels rising (+20) 29923 | -2/Quarantine | Non-combat units ordered to evacuate 29997 | -2/Quarantine | Discovered new exit (range 9) 30391 | -2/Quarantine | Found Alien Artifact 30391 | -2/Quarantine | Identified Dimensional Node Initializer 30391 | -2/Quarantine | Initialized slip node 30398 | -2/Quarantine | Found Dimensional Node Initializer 30413 | -2/Quarantine | Found Alien Artifact 30413 | -2/Quarantine | Identified Hpw. Transdimensional Reconstructor 30413 | -2/Quarantine | Warped through subspace to slip node 30422 | -2/Quarantine | Found Transdimensional Reconstructor 30618 | -2/Quarantine | Found Alien Artifact 30702 | -2/Quarantine | Found Alien Impact Weapon 30798 | -2/Quarantine | Identified Core Stripper 30800 | -2/Quarantine | Spotted Fortress 30812 | -2/Quarantine | Destroyed Fortress 30828 | -2/Quarantine | System corruption reached 10% 30853 | -2/Quarantine | Found Prototype Device 30853 | -2/Quarantine | Identified Thermal Barrier 30859 | -2/Quarantine | Found Prototype Reactor 30859 | -2/Quarantine | Identified Vortex Chain Reactor 30875 | -2/Quarantine | Found Prototype Device 30875 | -2/Quarantine | Identified Exp. Force Field 30878 | -2/Quarantine | Found Prototype Device 30879 | -2/Quarantine | Identified Exp. EM Shield 30958 | -2/Quarantine | First assault squad dispatched 31025 | -2/Quarantine | Discovered new exit (range 5) 31025 | -2/Quarantine | Discovered new exit (range 6) 31031 | -2/Quarantine | Identified exit to Protoforge 31033 | -2/Quarantine | Entered Protoforge 31109 | -2/Protoforge | Watched by a mysterious "MATRIX" hacker 31112 | -2/Protoforge | Build established: Tank 31360 | -2/Protoforge | Spotted Hotshot 31363 | -2/Protoforge | Spotted Hotshot 31365 | -2/Protoforge | Spotted Hotshot 31367 | -2/Protoforge | Destroyed Hotshot 31374 | -2/Protoforge | Destroyed Hotshot 31377 | -2/Protoforge | Destroyed Hotshot 31401 | -2/Protoforge | Discovered new exit (range 9) 31433 | -2/Protoforge | Spotted Hotshot 31434 | -2/Protoforge | Spotted Hotshot 31471 | -2/Protoforge | Destroyed Hotshot 31499 | -2/Protoforge | Spotted Hotshot 31529 | -2/Protoforge | Destroyed Hotshot 31541 | -2/Protoforge | Identified exit to Access 31568 | -2/Protoforge | Initialized slip node 31590 | -2/Protoforge | Destroyed Hotshot 31750 | -2/Protoforge | Additional patrols dispatched to research labs 31750 | -2/Protoforge | Superfortress began startup sequence 31816 | -2/Protoforge | Crushed by falling debris 31837 | -2/Protoforge | Spotted Immortal 31838 | -2/Protoforge | Spotted Immortal 31868 | -2/Protoforge | Destroyed Immortal 31904 | -2/Protoforge | Scanned by Researcher 31915 | -2/Protoforge | Destroyed Immortal 31963 | -2/Protoforge | Spotted Decapitator 31963 | -2/Protoforge | Spotted Decapitator 31963 | -2/Protoforge | Spotted Decapitator 31963 | -2/Protoforge | Spotted Decapitator 31966 | -2/Protoforge | Destroyed Decapitator 31979 | -2/Protoforge | Destroyed Decapitator 32033 | -2/Protoforge | Destroyed Decapitator 32081 | -2/Protoforge | Found Prototype Device 32081 | -2/Protoforge | Identified Crosscalibrator 32313 | -2/Protoforge | Forge Plexus network access discovered 32422 | -2/Protoforge | Found Corrupted Cep. Antimissile System 32458 | -2/Protoforge | Found Cep. Weapon Articulator 32533 | -2/Protoforge | First assault squad dispatched 32550 | -2/Protoforge | Spotted V495-n 32582 | -2/Protoforge | Destroyed V495-n 32585 | -2/Protoforge | System corruption reached 30% 32688 | -2/Protoforge | Found Cep. Networked Targeting System 32875 | -2/Protoforge | Spotted V132-x 32875 | -2/Protoforge | Spotted V306-l 32875 | -2/Protoforge | Spotted V400-l 32887 | -2/Protoforge | Found Cep. Tiamat Rocket Array 32895 | -2/Protoforge | Spotted V283-d 32909 | -2/Protoforge | Destroyed V400-l 32926 | -2/Protoforge | Warped through subspace to slip node 32928 | -2/Protoforge | Destroyed V306-l 32939 | -2/Protoforge | Core integrity fell below 50% 32969 | -2/Protoforge | Lost 14 parts (3n6u5w) 32997 | -2/Protoforge | Spotted Hotshot 33004 | -2/Protoforge | Spotted Hotshot 33007 | -2/Protoforge | Spotted Hotshot 33021 | -2/Protoforge | Destroyed Hotshot 33027 | -2/Protoforge | Destroyed Hotshot 33037 | -2/Protoforge | Destroyed Hotshot 33040 | -2/Protoforge | Spotted Hotshot 33041 | -2/Protoforge | Spotted Hotshot 33051 | -2/Protoforge | Destroyed Hotshot 33068 | -2/Protoforge | Destroyed Hotshot 33077 | -2/Protoforge | Core integrity fell below 20% 33091 | -2/Protoforge | Destroyed by G-73 Enforcer with Phase Gun Last Messages --------------- 33071_ K-01 Serf collects debris. 33073_ Enh. Nova Cannon destroyed. 33073_ Coolant Network destroyed. 33075_ K-01 Serf collects debris. 33075_ Critical hit (Burn: +37). 33076_ Adv. Targeting Computer destroyed. 33076_ Critical hit (Burn: +37). 33076_ Exp. Antimatter Reactor destroyed. 33078_ Adv. Heat Sink fried. 33078_ G-73 Enforcer destroyed. 33078_ K-01 Serf collects debris. 33082_ Core Analyzer destroyed. 33082_ Adv. Transmission Jammer destroyed. 33083_ K-01 Serf collects debris. 33083_ Dropped Huge Storage Unit. 33086_ Dropped Com. HERF Cannon+. 33086_ K-01 Serf collects debris. 33088_ System corrupted: Heat flow error (+116). 33088_ Dropped Exp. Energy Well. 33089_ K-01 Serf collects debris. Map ----- +----------------------------------------------------+ | ?????????## =????#### ### """ #??????????? | | ? ?? ????# ???????# #?# """ #??????#???? | | ??"???????# ????#??# #?# #????????#?? | | ??? ?????## ?????###/############??????????? | | ??????"??? ?#???# #?????#??????????? | | ??"??????# ???#?# """ #????#?###???????? | | #??? ????/ ? ????# """ #????#?#??#??????? | | ??"? ??? # =%????#?# """ #??#????#?#??##??? | | ????? ???# ???##?# #?#????#??????#??? | | ????????## ????#?# "" " ###?#??????#???### | | ??????#????#???#???## ""S" #???#?????#????# | | ????? ??#???????##?## " ""!%#??????????????# | | ????????????????????# !%!!#???????#?#??#?# | | ????? ? ?#????##?#?####"%+####?#?#?????#????# | | ??"???# ##????# ? ? # #??##?#????????# " | | ??????+ ???# " " # #?#?#??#??????## " | | ??????# ??# " " # < #?##????#?#????# " | | ???????"" ?+ " " # ## ##????##??### | | ??????#"" ?# #### ################## | | ????"?#"" # #### % | | #?? ??T ### # ## " | | ???????"" ## # ##= % | | ????#?#"" ## #######=% ##########"######+ | | ??????#"" #####% #????????# #???? | | ????#?# ! !!] #### #????#####"####? | | ##?# "=!![! ]!] =@%*[ #????# # "" | | ??????#=[%[%! !]! !%!# #????# # "" | | ?#????##!!=[ !=g!! #???## #### | | ??????##+### # k/= ##??## """""" #?? | | ?????? ???## # !%;[% ##???# """""" #??? | | ???? ??"???# #g " !g= #????# """""" ##? | | ????"??????# + # #??#?# """""" #??? | | ??"????????# ?# ; #???## #??? | | ???????????#??########### #?#??# #??? | | ????? ?????#?????##????## ##########+####??? | | ????????????????? ????? ###? | | ?????"????????????? ? ?? #??# | | ? ??"??? ??? ????????? ? ##?? | | #?"???????????? ?? ????? #?#? | | ? ? ??? ? ??????????#????#+############ #??? | | #????? ???? ?? ???#??? ? ???????#?# "#?? | | ???"??????# ??????????? ????? ? ??????# #### | | ? ????????#???"? ???????????? ???????## | | ?????? ?????"???????????" ??" ?? ?##??# | | ??? ????????"???????????"???? ????????# | | ???###?##?? ????????????? ?"?????##??## | | ?????????##?????? ??#???"???? ? ?#?#?## #""#### | | ?????#???##???"?????#???"??"??? ??#???# ####?#? | | ?????????????"?? ?##?"????????? ?????# #???#?? | | ???????#??#????? ???# ??????? ?????#?# ##?#??? | +----------------------------------------------------+ Best States ------------- Heat Dissipation 159 Coolant Potential 100 Energy Generation 75 Energy Capacity 2700 Matter Stores 674 Matter Capacity 700 Sight Range 16 Robot Scan Range 16 Terrain Scan Range 30 Terrain Scan Density 10 ECM Strength 2 Jamming Range 16 Base Temperature (-) 200 Armor Coverage 1200 Resistance: KI 30 Resistance: EM 75 Point Defense Rating 480 Weapon Cycling 20 Evasion (%) 49 Targeting Accuracy 38 Core Analysis 6 Recoil Reduction 6 Particle Charging 30 Offensive Hacking 14 Item Schematics ----------------- Huge Storage Unit | -10/Materials | Hacked Assault Drone Bay | -5/Zhirov | Free Exp. Heat Sink | -5/Zhirov | Free Exp. Optical Array | -5/Zhirov | Free Imp. Arc Thrower | -5/Zhirov | Free Robot Schematics ------------------ None Fabricated ------------ Nothing Repaired ---------- Lgt. Treads | 23% | -10/Materials Lgt. Treads | 63% | -10/Materials Grenade Launcher | 48% | -7/Factory Lgt. Treads | 33% | -7/Factory Studied --------- Gauss Rifle | -5/Factory | Hacked Com. HERF Cannon | -3/Testing | Hacked Hvy. Missile Launcher | -3/Testing | Hacked Alien Tech Used ----------------- Integrated Dissipator Dimensional Node Initializer High-powered Transdimensional Reconstructor Core Stripper Transdimensional Reconstructor Achievements -------------- Explosive Keycard Frankenstein Link The Feds My Bad Uncivil War Challenges ------------ None Game ------ Seed LatentBombardmentAirjet Manual? 0 Play Time 04:13:03 Cumulative 372.4 hours Start 2026.08.22 @ 05:47:57 End 2026.08.25 @ 05:15:27 Sessions 25 Manual Loads 0 Difficulty Rogue Special Mode None Game No. 102 Rogue 101 Adventurer 1 Explorer 0 Win Type - Total 35 Types 9/7/7/0/0/1/10/0/0/1 Lore% 67 Gallery% 73 Achievement% 63 Wizard Run 0 Options --------- Layout 0 ASCII 0 Keyboard 0 Movement Mouse Keybinds 0 Fullscreen 1 Font 24/Terminus Map View 76x50 Zoom Use 0% Tactical HUD 1 Map Filters NONE Filters NONE Steam 1 RUN: 90f9d3ed-bd9b-4bee-9df4-11f82450f6c8